bitfinex/quotes_BTCUSD_20220731
["timestamp","ask_amount","ask_price","bid_price","bid_amount"]
[1659248925354,0.3,23746.0,23740.0,0.40725733]
[1659248925355,0.42039605,23745.0,23740.0,0.40725733]
[1659248926309,0.05,23741.0,23739.0,0.48625733]
[1659248926574,0.304199,23744.0,23739.0,0.48625733]
[1659248926790,0.47039605,23745.0,23739.0,0.40725733]
[1659248927241,0.304199,23744.0,23739.0,0.40725733]
[1659248927468,0.129,23745.0,23740.0,0.34035407]
[1659248927673,0.079,23745.0,23741.0,1.01145633]
[1659248927900,0.079,23745.0,23742.0,0.40725733]
[1659248928113,0.079,23745.0,23743.0,0.3]
[1659248928571,0.38653063,23744.0,23743.0,0.3]
[1659248928794,0.03653063,23744.0,23743.0,0.3]
[1659248929026,0.03653063,23744.0,23742.0,0.40725733]
[1659248929192,0.03653063,23744.0,23743.0,0.3]
[1659248929421,0.079,23744.0,23743.0,0.3]
[1659248930808,1.0086,23748.0,23743.0,0.3]
[1659248931049,0.304199,23747.0,23743.0,0.3]
[1659248931272,1.0086,23748.0,23743.0,0.3]
[1659248931492,0.304199,23747.0,23744.0,0.05]
[1659248931708,0.03653063,23746.0,23743.0,0.3]
[1659248931935,0.304199,23746.0,23743.0,0.3]
[1659248932167,1.0876,23748.0,23743.0,0.3]
[1659248932399,0.304199,23747.0,23743.0,0.75725733]
[1659248932630,0.6608,23748.0,23743.0,0.70725733]
[1659248932838,0.304199,23747.0,23743.0,0.80725733]
[1659248933076,0.5818,23748.0,23743.0,0.80725733]
[1659248933277,0.304199,23747.0,23743.0,0.75725733]
[1659248933481,0.5818,23748.0,23743.0,0.70725733]
[1659248933482,0.03641588,23746.0,23743.0,0.70725733]
[1659248934692,0.5818,23748.0,23744.0,0.304199]
[1659248934917,0.5818,23748.0,23743.0,0.70725733]
[1659248935135,0.03641588,23747.0,23743.0,0.70725733]
[1659248935354,0.03641588,23747.0,23744.0,0.05]
[1659248935580,0.304199,23746.0,23743.0,0.70725733]
[1659248935796,0.03641588,23747.0,23743.0,0.70725733]
[1659248936278,0.03641588,23747.0,23744.0,0.05]
[1659248936504,0.304199,23746.0,23744.0,0.05]
[1659248936736,0.03641588,23747.0,23743.0,0.70725733]
[1659248937435,0.03641588,23747.0,23744.0,0.05]
[1659248937436,0.08141588,23747.0,23744.0,0.05]
[1659248937660,0.304199,23746.0,23745.0,0.40725733]
[1659248937876,0.08141588,23747.0,23745.0,0.70725733]
[1659248937877,0.045,23747.0,23745.0,0.70725733]
[1659248938110,0.304199,23746.0,23745.0,0.40725733]
[1659248938360,0.045,23747.0,23745.0,0.70725733]
[1659248938591,0.045,23747.0,23746.0,0.3]
[1659248938826,0.304199,23747.0,23745.0,0.40725733]
[1659248939044,0.44341772,23749.0,23745.0,0.40725733]
[1659248939266,0.304199,23748.0,23745.0,0.40725733]
[1659248939482,0.08141588,23747.0,23745.0,0.40725733]
[1659248939728,0.304199,23746.0,23745.0,0.40725733]
[1659248939955,0.08141588,23747.0,23745.0,0.40725733]
[1659248940196,0.304199,23746.0,23745.0,0.40725733]
[1659248940638,0.08141588,23747.0,23745.0,0.70725733]
[1659248940888,0.304199,23746.0,23745.0,0.40725733]
[1659248941103,0.44341772,23749.0,23745.0,0.40725733]
[1659248941321,0.34061488,23748.0,23745.0,0.40725733]
[1659248941558,0.045,23747.0,23745.0,0.40725733]
[1659248941822,0.349199,23747.0,23745.0,0.40725733]
[1659248942925,0.304199,23747.0,23745.0,0.40725733]
[1659248943374,0.383199,23747.0,23745.0,0.40725733]
[1659248944286,0.383199,23747.0,23739.0,0.33537848]
[1659248944287,0.05,23746.0,23739.0,0.33537848]
[1659248944498,0.05,23746.0,23740.0,0.70725733]
[1659248944751,0.05,23746.0,23741.0,0.40725733]
[1659248945482,0.129,23746.0,23741.0,0.40725733]
[1659248945720,0.129,23746.0,23742.0,0.3]
[1659248945940,0.129,23746.0,23742.0,0.70725733]
[1659248946615,0.129,23746.0,23742.0,0.75725733]
[1659248946849,0.43057018,23748.0,23743.0,0.40725733]
[1659248947095,0.43057018,23748.0,23744.0,0.3]
[1659248947096,0.304199,23747.0,23744.0,0.3]
[1659248947327,0.43057018,23748.0,23744.0,0.70725733]
[1659248947546,0.06,23746.0,23744.0,0.70725733]
[1659248948676,0.06,23746.0,23744.0,0.75725733]
[1659248948900,0.03641588,23747.0,23744.0,0.70725733]
[1659248949567,0.031,23746.0,23744.0,0.78525733]
[1659248950245,0.031,23746.0,23744.0,0.83525733]
[1659248950483,0.031,23746.0,23744.0,0.78525733]
[1659248950704,0.43057018,23748.0,23744.0,0.70725733]
[1659248950923,0.304199,23747.0,23744.0,0.70725733]
[1659248951159,0.43057018,23748.0,23744.0,0.70725733]
[1659248951379,0.304199,23747.0,23744.0,0.70725733]
[1659248951614,0.47057018,23748.0,23744.0,0.72014285]
[1659248951837,0.304199,23747.0,23744.0,0.77014285]
[1659248952060,0.47057018,23748.0,23744.0,0.77014285]
[1659248952276,0.47057018,23748.0,23744.0,0.72014285]
[1659248952492,0.47048095,23748.0,23744.0,0.77014285]
[1659248952716,0.43048095,23748.0,23744.0,0.77014285]
[1659248952971,0.304199,23747.0,23744.0,0.77014285]
[1659248953200,0.43048095,23748.0,23744.0,0.72014285]
[1659248953472,0.304199,23747.0,23744.0,0.77014285]
[1659248953700,0.46748095,23748.0,23744.0,0.77014285]
[1659248954859,0.03641588,23747.0,23744.0,0.77014285]
[1659248955076,0.43048095,23748.0,23744.0,0.82014285]
[1659248955565,0.46748095,23748.0,23744.0,0.82014285]
[1659248956022,0.34061488,23747.0,23744.0,0.77014285]
[1659248956236,0.03641588,23747.0,23744.0,0.77014285]
[1659248956465,0.03641588,23747.0,23744.0,0.82014285]
[1659248956955,0.43048095,23748.0,23744.0,0.82014285]
[1659248957150,0.304199,23747.0,23744.0,0.82014285]
[1659248957397,0.013,23747.0,23744.0,0.89314285]
[1659248957850,0.03641588,23746.0,23744.0,0.89314285]
[1659248958070,0.03641588,23746.0,23744.0,0.78025733]
[1659248958510,0.013,23747.0,23744.0,0.78025733]
[1659248958764,0.43048095,23748.0,23744.0,0.70725733]
[1659248958994,0.304199,23747.0,23744.0,0.75725733]
[1659248959211,0.43048095,23748.0,23744.0,0.70725733]
[1659248959441,0.304199,23747.0,23744.0,0.70725733]
[1659248959691,0.47048095,23748.0,23744.0,0.70725733]
[1659248959908,0.304199,23747.0,23744.0,0.70725733]
[1659248960138,0.03641588,23746.0,23744.0,0.70725733]
[1659248960583,0.304199,23745.0,23744.0,0.70725733]
[1659248960856,0.03641588,23746.0,23744.0,0.70725733]
[1659248961077,0.43048095,23748.0,23744.0,0.70743474]
[1659248961303,0.34061488,23747.0,23744.0,0.70743474]
[1659248961519,0.43048095,23748.0,23744.0,0.78643474]
[1659248961748,0.304199,23747.0,23744.0,0.83643474]
[1659248961970,0.43048095,23748.0,23744.0,0.78643474]
[1659248962459,0.304199,23747.0,23744.0,0.78625733]
[1659248962688,0.43048095,23748.0,23744.0,0.70725733]
[1659248962919,0.304199,23747.0,23744.0,0.70725733]
[1659248963136,0.43048095,23748.0,23744.0,0.70725733]
[1659248963385,0.304199,23747.0,23744.0,0.70725733]
[1659248963816,0.47048095,23748.0,23744.0,0.70725733]
[1659248964040,0.304199,23747.0,23744.0,0.70725733]
[1659248964269,0.47048095,23748.0,23744.0,0.70725733]
[1659248964488,0.304199,23747.0,23744.0,0.70725733]
[1659248964751,0.304199,23747.0,23744.0,0.40725733]
[1659248965209,0.47048095,23748.0,23741.0,0.6]
[1659248965210,0.4,23745.0,23742.0,0.40725733]
[1659248965429,0.43048095,23748.0,23742.0,0.40725733]
[1659248965430,0.05,23743.0,23742.0,0.40725733]
[1659248965649,0.05,23743.0,23741.0,0.70725733]
[1659248965875,0.5976,23747.0,23741.0,0.70725733]
[1659248966357,0.304199,23746.0,23741.0,0.70725733]
[1659248966589,0.5976,23747.0,23741.0,0.70725733]
[1659248966811,0.304199,23746.0,23742.0,0.3]
[1659248967024,0.5516,23747.0,23742.0,0.3]
[1659248967247,0.304199,23746.0,23742.0,0.3]
[1659248967467,0.5976,23747.0,23742.0,0.3]
[1659248967677,0.304199,23746.0,23742.0,0.3]
[1659248967901,0.5976,23747.0,23742.0,0.3]
[1659248968126,0.304199,23746.0,23742.0,0.35]
[1659248968343,0.5976,23747.0,23742.0,0.35]
[1659248968344,0.03641588,23745.0,23742.0,0.3]
[1659248968670,0.5876,23747.0,23742.0,0.70725733]
[1659248968894,0.43048095,23748.0,23743.0,0.40725733]
[1659248969109,0.304199,23747.0,23744.0,0.3]
[1659248969332,0.08241588,23747.0,23744.0,0.3]
[1659248969560,0.304199,23746.0,23744.0,0.3]
[1659248970012,0.046,23747.0,23744.0,0.3]
[1659248970452,0.304199,23746.0,23744.0,0.3]
[1659248970672,0.43048095,23748.0,23744.0,0.3]
[1659248970897,0.304199,23747.0,23744.0,0.3]
[1659248971154,0.43048095,23748.0,23744.0,0.3]
[1659248971379,0.34061488,23747.0,23744.0,0.3]
[1659248971600,0.03641588,23747.0,23744.0,0.3]
[1659248973364,0.046,23747.0,23744.0,0.35]
[1659248973821,0.046,23747.0,23744.0,0.3]
[1659248974045,0.036,23747.0,23744.0,0.3]
[1659248974722,0.43048095,23748.0,23745.0,0.05]
[1659248974974,0.304199,23747.0,23744.0,0.35]
[1659248975199,0.43048095,23748.0,23744.0,0.3]
[1659248975419,0.304199,23747.0,23745.0,0.05]
[1659248975659,0.47148095,23748.0,23744.0,0.3]
[1659248976087,0.47148095,23748.0,23744.0,0.35]
[1659248976887,0.43048095,23748.0,23744.0,0.3]
[1659248977111,0.03641588,23747.0,23744.0,0.3]
[1659248977331,0.43048095,23748.0,23744.0,0.3]
[1659248977561,0.43048095,23748.0,23744.0,0.35]
[1659248977794,0.46648095,23748.0,23744.0,0.35]
[1659248978230,0.03641588,23747.0,23744.0,0.35]
[1659248978445,0.46648095,23748.0,23744.0,0.3]
[1659248978934,0.46648095,23748.0,23745.0,0.05]
[1659248979171,0.34061488,23747.0,23744.0,0.3]
[1659248979391,0.03641588,23747.0,23744.0,0.3]
[1659248979607,0.43048095,23748.0,23745.0,0.05]
[1659248979830,0.43048095,23748.0,23744.0,0.35]
[1659248980047,0.43048095,23748.0,23744.0,0.3]
[1659248980741,0.43048095,23748.0,23744.0,0.31231585]
[1659248980964,0.03641588,23747.0,23744.0,0.31231585]
[1659248981183,0.43048095,23748.0,23744.0,0.31231585]
[1659248981855,0.03641588,23747.0,23744.0,0.31231585]
[1659248982081,0.47148095,23748.0,23745.0,0.05]
[1659248982301,0.47148095,23748.0,23744.0,0.31231585]
[1659248982551,0.47148095,23748.0,23745.0,0.05]
[1659248982788,0.51248095,23748.0,23744.0,0.31231585]
[1659248983439,0.03641588,23747.0,23744.0,0.31231585]
[1659248984617,0.43048095,23748.0,23744.0,0.31231585]
[1659248988123,0.03467316,23747.0,23744.0,0.31231585]
[1659248988314,0.43048095,23748.0,23744.0,0.31231585]
[1659248988538,0.43048095,23748.0,23744.0,0.36231585]
[1659248988765,0.43048095,23748.0,23744.0,0.31231585]
[1659248989449,0.43048095,23748.0,23745.0,0.05]
[1659248989450,0.03641588,23747.0,23745.0,0.05]
[1659248989676,0.03641588,23747.0,23744.0,0.31231585]
[1659248989912,0.46648095,23748.0,23744.0,0.31231585]
[1659248991073,0.43048095,23748.0,23744.0,0.31231585]
[1659248991747,0.47148095,23748.0,23744.0,0.36231585]
[1659248992222,0.51248095,23748.0,23744.0,0.36231585]
[1659248992443,0.03641588,23747.0,23744.0,0.3]
[1659248992663,0.34061488,23747.0,23744.0,0.3]
[1659248993113,0.03641588,23747.0,23744.0,0.3]
[1659248993556,0.304199,23746.0,23744.0,0.3]
[1659248993772,0.03641588,23747.0,23744.0,0.3]
[1659248993988,0.05,23745.0,23744.0,0.3]
[1659248994202,0.48967321,23747.0,23741.0,0.3]
[1659248994495,0.08241588,23747.0,23742.0,0.40725733]
[1659248994737,0.08241588,23747.0,23743.0,0.3]
[1659248995171,0.43048095,23748.0,23743.0,0.3]
[1659248995845,0.43048095,23748.0,23744.0,0.05]
[1659248996065,0.33887216,23747.0,23743.0,0.3]
[1659248996279,0.03467316,23747.0,23743.0,0.3]
[1659248997989,0.08067316,23747.0,23743.0,0.3]
[1659248999082,0.046,23747.0,23743.0,0.3]
[1659248999309,0.43048095,23748.0,23743.0,0.3]
[1659248999576,0.304199,23747.0,23743.0,0.3]
[1659248999794,0.43842977,23746.0,23741.0,0.05]
[1659249000010,0.304199,23745.0,23741.0,0.50725733]
[1659249000215,0.43842977,23746.0,23742.0,0.3]
[1659249000664,0.43842977,23746.0,23742.0,0.70725733]
[1659249001804,0.43842977,23746.0,23743.0,0.00017742]
[1659249002014,0.51742977,23746.0,23743.0,0.00017742]
[1659249002750,0.079,23746.0,23744.0,0.354199]
[1659249002961,0.079,23746.0,23745.0,0.3]
[1659249003174,0.5424,23750.0,23745.0,0.3]
[1659249003391,0.71145633,23749.0,23745.0,0.3]
[1659249003649,0.43504882,23749.0,23745.0,0.3]
[1659249004083,0.304199,23748.0,23743.0,0.3]
[1659249004305,0.43504882,23749.0,23744.0,0.40725733]
[1659249004548,0.304199,23748.0,23745.0,0.3]
[1659249004774,0.43504882,23749.0,23745.0,0.3]
[1659249004996,0.304199,23748.0,23745.0,0.3]
[1659249005212,0.43504882,23749.0,23745.0,0.3]
[1659249005425,0.34067884,23748.0,23745.0,0.3]
[1659249005659,0.43504882,23749.0,23745.0,0.3]
[1659249005887,0.304199,23748.0,23745.0,0.3]
[1659249006360,0.48104882,23749.0,23745.0,0.3]
[1659249006361,0.48104882,23749.0,23745.0,0.35]
[1659249006600,0.34067884,23748.0,23745.0,0.3]
[1659249007255,0.304199,23747.0,23745.0,0.3]
[1659249007836,0.03647984,23748.0,23745.0,0.3]
[1659249008070,0.03647984,23748.0,23745.0,0.378]
[1659249008310,0.43504882,23749.0,23745.0,0.378]
[1659249008506,0.304199,23748.0,23745.0,0.378]
[1659249008736,0.43504882,23749.0,23745.0,0.378]
[1659249008962,0.304199,23748.0,23745.0,0.378]
[1659249009153,0.43504882,23749.0,23745.0,0.3]
[1659249009371,0.01435341,23746.0,23745.0,0.3]
[1659249011278,0.01435341,23746.0,23745.0,0.35]
[1659249011510,0.01435341,23746.0,23745.0,0.3]
[1659249011890,0.01435341,23746.0,23745.0,0.379]
[1659249012109,0.01435341,23746.0,23745.0,0.429]
[1659249012331,0.01435341,23746.0,23745.0,0.479]
[1659249012568,0.01435341,23746.0,23745.0,0.429]
[1659249013739,0.01435341,23746.0,23745.0,0.35]
[1659249013959,0.00935341,23746.0,23745.0,0.4]
[1659249014162,0.00935341,23746.0,23745.0,0.35]
[1659249014426,0.00935341,23746.0,23745.0,0.4]
[1659249014643,0.00935341,23746.0,23745.0,0.3]
[1659249015109,0.31355241,23746.0,23745.0,0.3]
[1659249015301,0.08835341,23746.0,23745.0,0.3]
[1659249015563,0.08835341,23746.0,23745.0,0.35]
[1659249015999,0.16735341,23746.0,23745.0,0.3]
[1659249016221,0.16735341,23746.0,23745.0,0.35]
[1659249016456,0.16735341,23746.0,23745.0,0.3]
[1659249016914,0.00935341,23746.0,23745.0,0.4]
[1659249018017,0.08835341,23746.0,23745.0,0.4]
[1659249018464,0.08835341,23746.0,23745.0,0.35]
[1659249018683,0.08835341,23746.0,23745.0,0.4]
[1659249019314,0.00935341,23746.0,23745.0,0.4]
[1659249019653,0.00935341,23746.0,23745.0,0.35]
[1659249019859,0.00935341,23746.0,23745.0,0.4]
[1659249020275,0.00935341,23746.0,23745.0,0.35]
[1659249020520,0.00935341,23746.0,23745.0,0.4]
[1659249020724,0.00935341,23746.0,23745.0,0.3]
[1659249020929,0.00935341,23746.0,23745.0,0.35]
[1659249021157,0.08835341,23746.0,23745.0,0.704199]
[1659249021364,0.08835341,23746.0,23745.0,0.4]
[1659249022208,0.12483325,23746.0,23745.0,0.479]
[1659249022418,0.04583325,23746.0,23745.0,0.4]
[1659249022627,0.00935341,23746.0,23745.0,0.4]
[1659249023761,0.00935341,23746.0,23745.0,0.479]
[1659249025078,0.00935341,23746.0,23745.0,0.4]
[1659249025814,0.04583325,23746.0,23745.0,0.479]
[1659249026023,0.00935341,23746.0,23745.0,0.479]
[1659249027135,0.00935341,23746.0,23745.0,0.4]
[1659249027773,0.07435341,23746.0,23745.0,0.405]
[1659249029321,0.00935341,23746.0,23745.0,0.4]
[1659249029816,0.07435341,23746.0,23745.0,0.405]
[1659249031313,0.00935341,23746.0,23745.0,0.4]
[1659249031538,0.00935341,23746.0,23745.0,0.80725733]
[1659249031938,0.00935341,23746.0,23745.0,0.88625733]
[1659249032627,0.00935341,23746.0,23745.0,1.19045633]
[1659249032831,0.00935341,23746.0,23745.0,0.88625733]
[1659249033056,0.00935341,23746.0,23745.0,1.19045633]
[1659249033291,0.00935341,23746.0,23745.0,0.80725733]
[1659249033982,0.00935341,23746.0,23745.0,0.88625733]
[1659249034893,0.00935341,23746.0,23745.0,0.83625733]
[1659249035130,0.00935341,23746.0,23745.0,0.48625733]
[1659249035346,0.00935341,23746.0,23745.0,0.40725733]
[1659249035804,0.00925928,23746.0,23745.0,0.40725733]
[1659249036029,0.00925928,23746.0,23745.0,0.48625733]
[1659249036695,0.00925928,23746.0,23745.0,0.58625733]
[1659249036949,0.00925928,23746.0,23745.0,0.78619681]
[1659249037182,0.00925928,23746.0,23745.0,0.83619681]
[1659249037446,0.00925928,23746.0,23745.0,0.70719681]
[1659249037887,0.00925928,23746.0,23745.0,0.78619681]
[1659249038823,0.00925928,23746.0,23745.0,0.78631346]
[1659249039299,0.00925928,23746.0,23745.0,0.80731346]
[1659249039515,0.00925928,23746.0,23745.0,0.70719681]
[1659249039995,0.00925928,23746.0,23745.0,0.74819681]
[1659249041594,0.00925928,23746.0,23745.0,0.79819681]
[1659249041791,0.00925928,23746.0,23745.0,0.70719681]
[1659249041906,0.00925928,23746.0,23745.0,0.74819681]
[1659249042314,0.00925928,23746.0,23745.0,0.74831346]
[1659249042983,0.00925928,23746.0,23745.0,0.79831346]
[1659249043221,1.08481617,23758.0,23749.0,0.15]
[1659249043459,1.4920735,23758.0,23757.0,0.1]
[1659249043692,1.4920735,23758.0,23751.0,0.35]
[1659249043693,0.56909601,23758.0,23751.0,0.35]
[1659249043963,0.56909601,23758.0,23757.0,0.1]
[1659249043964,0.64809601,23758.0,23757.0,0.1]
[1659249044224,0.95229501,23758.0,23752.0,0.40725733]
[1659249044483,0.64809601,23758.0,23753.0,0.3]
[1659249044715,0.304199,23757.0,23753.0,0.40725733]
[1659249044938,0.71145633,23757.0,23747.0,0.1]
[1659249045229,0.40725733,23757.0,23748.0,0.70725733]
[1659249045428,0.40725733,23757.0,23749.0,0.40725733]
[1659249045669,0.304199,23756.0,23749.0,0.40725733]
[1659249045887,0.5476,23756.0,23749.0,0.40725733]
[1659249047080,0.5476,23756.0,23750.0,0.3]
[1659249047299,0.5476,23756.0,23750.0,0.70725733]
[1659249047751,0.304199,23755.0,23750.0,0.70725733]
[1659249047987,0.6266,23756.0,23750.0,0.70725733]
[1659249048416,0.6266,23756.0,23750.0,0.80725733]
[1659249049392,0.5476,23756.0,23750.0,0.80725733]
[1659249049834,0.304199,23755.0,23750.0,0.40725733]
[1659249050062,0.6266,23756.0,23750.0,0.40725733]
[1659249051180,0.5476,23756.0,23750.0,0.45725733]
[1659249051409,0.5476,23756.0,23751.0,0.3]
[1659249051639,0.5476,23756.0,23751.0,0.35]
[1659249052114,0.6276,23756.0,23751.0,0.35]
[1659249053076,0.304199,23755.0,23751.0,0.35]
[1659249053300,0.5476,23756.0,23751.0,0.35]
[1659249053544,0.304199,23755.0,23751.0,0.35]
[1659249053767,0.5476,23756.0,23751.0,0.35]
[1659249054045,0.6276,23756.0,23751.0,0.35]
[1659249054259,0.304199,23755.0,23751.0,0.35]
[1659249054481,0.6276,23756.0,23751.0,0.35]
[1659249055368,0.5476,23756.0,23751.0,0.35]
[1659249055856,0.5476,23756.0,23752.0,0.05]
[1659249056086,0.6276,23756.0,23751.0,0.35]
[1659249056834,0.6276,23756.0,23752.0,0.05]
[1659249057068,0.03647984,23755.0,23751.0,0.35]
[1659249057530,0.5476,23756.0,23751.0,0.35]
[1659249058788,0.055,23755.0,23751.0,0.374]
[1659249060156,0.5476,23756.0,23751.0,0.35]
[1659249060407,0.055,23755.0,23751.0,0.374]
[1659249060669,0.055,23755.0,23752.0,0.05]
[1659249060875,0.055,23755.0,23751.0,0.374]
[1659249061524,0.03647984,23754.0,23751.0,0.374]
[1659249061761,0.5476,23756.0,23751.0,0.35]
[1659249062008,0.055,23755.0,23751.0,0.374]
[1659249062702,0.055,23755.0,23752.0,0.05]
[1659249062939,0.09147984,23755.0,23752.0,0.05]
[1659249063411,0.304199,23754.0,23751.0,0.374]
[1659249063571,0.09147984,23755.0,23751.0,0.374]
[1659249063804,0.5476,23756.0,23751.0,0.35]
[1659249064004,0.055,23755.0,23752.0,0.024]
[1659249065215,0.5476,23756.0,23751.0,0.35]
[1659249065657,0.304199,23755.0,23751.0,0.35]
[1659249065868,0.5476,23756.0,23751.0,0.427]
[1659249066501,0.40725733,23757.0,23751.0,0.427]
[1659249066709,0.40725733,23757.0,23752.0,0.05]
[1659249066918,0.40725733,23757.0,23751.0,0.427]
[1659249067153,0.304199,23756.0,23752.0,0.05]
[1659249067363,0.40715799,23757.0,23752.0,0.05]
[1659249067611,0.304199,23756.0,23752.0,0.05]
[1659249067824,0.40715799,23757.0,23752.0,0.05]
[1659249068073,0.40715799,23757.0,23752.0,0.127]
[1659249068074,0.304199,23756.0,23752.0,0.127]
[1659249068296,0.40715799,23757.0,23752.0,0.127]
[1659249068514,0.304199,23756.0,23752.0,0.127]
[1659249068719,0.40715799,23757.0,23752.0,0.127]
[1659249068934,0.304199,23756.0,23752.0,0.127]
[1659249069142,0.53261617,23758.0,23752.0,0.53425733]
[1659249069424,0.53261617,23758.0,23753.0,0.3]
[1659249069655,0.304199,23757.0,23753.0,0.35]
[1659249069880,0.58561617,23758.0,23753.0,0.35]
[1659249070106,0.58561617,23758.0,23753.0,1.05725733]
[1659249070310,0.58561617,23758.0,23754.0,0.81145633]
[1659249070530,0.58561617,23758.0,23755.0,1.01145633]
[1659249070752,0.58561617,23758.0,23757.0,0.15]
[1659249070989,0.58561617,23758.0,23757.0,0.91145633]
[1659249071201,0.53261617,23758.0,23757.0,1.21145633]
[1659249071956,0.53261617,23758.0,23757.0,0.90725733]
[1659249072140,0.53261617,23758.0,23757.0,0.98625733]
[1659249072800,0.53261617,23758.0,23757.0,0.93625733]
[1659249073019,0.53261617,23758.0,23757.0,1.29045633]
[1659249073238,0.53261617,23758.0,23757.0,1.21145633]
[1659249073662,0.53261617,23758.0,23757.0,0.90725733]
[1659249073863,0.53261617,23758.0,23757.0,0.97025733]
[1659249074202,0.53261617,23758.0,23757.0,1.27445633]
[1659249074847,0.53261617,23758.0,23757.0,1.28708017]
[1659249075051,0.53261617,23758.0,23757.0,0.98288117]
[1659249075260,0.53261617,23758.0,23757.0,0.91988117]
[1659249075688,0.53261617,23758.0,23757.0,1.22408017]
[1659249075900,0.53261617,23758.0,23757.0,1.17408017]
[1659249077202,0.53261617,23758.0,23757.0,1.23708017]
[1659249077408,0.53261617,23758.0,23757.0,1.28708017]
[1659249078696,0.53261617,23758.0,23757.0,1.22408017]
[1659249078828,0.53261617,23758.0,23757.0,1.28708017]
[1659249079037,0.53261617,23758.0,23757.0,0.98288117]
[1659249079235,0.53261617,23758.0,23757.0,1.28708017]
[1659249080129,0.53261617,23758.0,23757.0,1.36608017]
[1659249080368,0.53261617,23758.0,23757.0,1.30308017]
[1659249080709,0.53261617,23758.0,23757.0,1.30297369]
[1659249081604,0.53261617,23758.0,23757.0,1.22397369]
[1659249082682,0.53261617,23758.0,23757.0,1.30297369]
[1659249083616,0.50296593,23758.0,23757.0,1.35297369]
[1659249083838,0.50296593,23758.0,23757.0,1.43297369]
[1659249084056,0.50296593,23758.0,23757.0,1.35397369]
[1659249084986,0.50296593,23758.0,23757.0,1.33554369]
[1659249085196,0.50296593,23758.0,23757.0,1.22397369]
[1659249085643,0.50296593,23758.0,23757.0,1.25554369]
[1659249085866,0.50296593,23758.0,23757.0,1.33554369]
[1659249086290,0.50296593,23758.0,23757.0,1.38554369]
[1659249086291,0.47350065,23758.0,23757.0,1.38554369]
[1659249086931,0.47350065,23758.0,23757.0,1.35397369]
[1659249087191,0.47350065,23758.0,23757.0,1.27397369]
[1659249087851,0.47350065,23758.0,23757.0,1.35397369]
[1659249088284,0.47350065,23758.0,23757.0,1.38554369]
[1659249088501,0.47350065,23758.0,23757.0,1.35397369]
[1659249089153,0.47350065,23758.0,23757.0,1.27397369]
[1659249089812,0.47350065,23758.0,23757.0,1.34197369]
[1659249090692,0.47350065,23758.0,23757.0,1.29197369]
[1659249091338,0.47350065,23758.0,23757.0,1.22397369]
[1659249092017,0.47350065,23758.0,23757.0,1.29297369]
[1659249093245,0.47350065,23758.0,23757.0,1.22397369]
[1659249094048,0.47350065,23758.0,23757.0,1.29297369]
[1659249095455,0.47350065,23758.0,23757.0,1.22397369]
[1659249095903,0.47350065,23758.0,23757.0,1.29297369]
[1659249096446,0.47350065,23758.0,23757.0,1.33512369]
[1659249096895,0.47350065,23758.0,23757.0,1.29297369]
[1659249097344,0.47350065,23758.0,23757.0,1.22397369]
[1659249098021,0.47350065,23758.0,23757.0,1.29297369]
[1659249099194,0.47350065,23758.0,23757.0,1.22397369]
[1659249101176,0.47336205,23758.0,23757.0,1.22397369]
[1659249101407,0.47336205,23758.0,23757.0,1.29297369]
[1659249102117,0.47336205,23758.0,23757.0,1.36197369]
[1659249103275,0.47336205,23758.0,23757.0,1.22397369]
[1659249105827,0.3,23767.0,23759.0,0.1]
[1659249106062,0.3,23767.0,23763.0,0.40725733]
[1659249106389,0.3885,23768.0,23764.0,0.604199]
[1659249106615,0.3885,23768.0,23765.0,0.76145633]
[1659249106850,0.0022,23768.0,23765.0,1.06145633]
[1659249107076,0.0022,23768.0,23765.0,1.11145633]
[1659249108014,0.15021,23766.0,23765.0,0.83325733]
[1659249108230,0.15021,23766.0,23765.0,0.88325733]
[1659249108690,0.15021,23766.0,23765.0,0.83325733]
[1659249108928,0.15021,23766.0,23765.0,0.78325733]
[1659249109360,0.15021,23766.0,23765.0,0.70725733]
[1659249109596,0.10576,23766.0,23765.0,0.75725733]
[1659249109819,0.001,23766.0,23765.0,0.75725733]
[1659249110042,0.001,23766.0,23765.0,0.85625733]
[1659249110413,0.001,23766.0,23765.0,0.75625733]
[1659249110658,0.15021,23766.0,23765.0,0.75625733]
[1659249111425,0.15021,23766.0,23765.0,0.75646366]
[1659249111603,0.15021,23766.0,23765.0,0.70746366]
[1659249111805,0.001,23766.0,23765.0,0.78646366]
[1659249113301,0.001,23766.0,23765.0,0.70746366]
[1659249113516,0.001,23766.0,23765.0,0.71454558]
[1659249113517,0.02416692,23766.0,23765.0,0.71454558]
[1659249113893,0.02416692,23766.0,23765.0,0.74454558]
[1659249114763,0.02416692,23766.0,23765.0,0.74433925]
[1659249114965,0.001,23766.0,23765.0,0.73725733]
[1659249115180,0.001,23766.0,23765.0,0.70725733]
[1659249115834,0.001,23766.0,23765.0,0.73725733]
[1659249116698,0.001,23766.0,23765.0,0.78725733]
[1659249116922,0.001,23766.0,23765.0,0.73725733]
[1659249117124,0.001,23766.0,23765.0,0.70725733]
[1659249117794,0.001,23766.0,23765.0,0.73725733]
[1659249118038,0.2914,23769.0,23765.0,0.73725733]
[1659249118243,0.304199,23768.0,23766.0,0.3]
[1659249118445,0.2914,23769.0,23766.0,0.3]
[1659249118672,0.304199,23768.0,23766.0,0.3]
[1659249118873,0.05,23767.0,23766.0,0.3]
[1659249119082,0.304199,23767.0,23766.0,0.3]
[1659249119298,0.2914,23769.0,23765.0,0.03]
[1659249119514,0.304199,23768.0,23765.0,0.03]
[1659249119905,0.2914,23769.0,23763.0,0.01290642]
[1659249119906,0.3704,23769.0,23763.0,0.01290642]
[1659249120114,0.3704,23769.0,23764.0,0.40725733]
[1659249120319,0.304199,23768.0,23765.0,0.3]
[1659249120577,0.304199,23768.0,23766.0,0.40725733]
[1659249120808,0.304199,23768.0,23767.0,0.3]
[1659249121043,0.304199,23768.0,23767.0,0.70725733]
[1659249121044,0.34067884,23768.0,23767.0,0.70725733]